bitfinex/quotes_ETHUSD_20240822
["timestamp","ask_amount","ask_price","bid_price","bid_amount"]
[1724296370871,0.05236814,2611.9,2611.5,2.29745]
[1724296371297,0.05236814,2611.9,2611.6,2.29743]
[1724296371499,0.05236814,2611.9,2611.7,2.29733]
[1724296372486,0.05236814,2611.9,2611.6,2.29743]
[1724296372670,0.05236814,2611.9,2611.8,2.29726]
[1724296372874,2.3608,2612.4,2611.8,2.29726]
[1724296373176,0.28873686,2612.3,2611.8,2.29726]
[1724296373412,0.05265686,2612.3,2611.8,2.29726]
[1724296373617,0.05265686,2612.3,2611.9,2.29717]
[1724296373916,0.40052771,2612.2,2611.9,2.29717]
[1724296374118,0.05253911,2612.1,2611.9,2.29717]
[1724296374820,0.05253911,2612.1,2612.0,2.37365839]
[1724296375117,0.05253911,2612.1,2612.0,3.31417284]
[1724296375307,0.40052771,2612.2,2612.0,3.31417284]
[1724296375502,0.40052771,2612.2,2612.1,2.297]
[1724296375819,0.40052771,2612.2,2612.1,4.594]
[1724296376019,0.40052771,2612.2,2612.1,8.144]
[1724296376325,0.40052771,2612.2,2612.1,9.00510828]
[1724296376618,0.40052771,2612.2,2612.1,11.31150828]
[1724296379293,3.04,2613.0,2612.1,11.31150828]
[1724296379294,3.04,2613.0,2612.6,2.2965]
[1724296379507,3.04,2613.0,2612.7,0.22965]
[1724296379706,0.40044542,2612.8,2612.7,2.37301494]
[1724296379919,0.40044542,2612.8,2612.7,2.29647]
[1724296380325,2.2725,2613.5,2612.8,2.29631]
[1724296380636,0.4004093,2613.0,2612.8,2.29631]
[1724296380849,2.2725,2613.5,2612.8,2.29631]
[1724296381050,0.40039794,2613.0,2612.8,2.29631]
[1724296381341,2.2725,2613.5,2612.8,2.37284589]
[1724296381661,0.40039433,2613.0,2612.8,2.37284589]
[1724296381864,2.2725,2613.5,2612.9,2.29629]
[1724296381994,0.40038173,2613.3,2613.1,2.2961]
[1724296382394,0.40038173,2613.3,2612.9,5.84629]
[1724296382835,0.40038173,2613.3,2613.0,2.29618]
[1724296383134,0.40038173,2613.3,2613.1,0.55]
[1724296383344,0.40038173,2613.3,2613.1,2.84606]
[1724296383524,0.40038173,2613.3,2613.2,4.59206]
[1724296383695,0.40038173,2613.3,2613.2,2.29603]
[1724296383899,0.40038173,2613.3,2613.2,3.609991]
[1724296385396,0.45465064,2613.3,2613.2,3.609991]
[1724296385894,0.40038173,2613.3,2613.2,5.906021]
[1724296386096,2.2945,2614.0,2613.2,5.906021]
[1724296386097,2.2945,2614.0,2613.4,2.29579]
[1724296386296,0.40034415,2613.7,2613.4,2.29579]
[1724296386606,0.40034415,2613.7,2613.4,3.1863681]
[1724296387293,0.40034415,2613.7,2613.6,2.29568]
[1724296387498,0.40034415,2613.7,2613.6,5.29568]
[1724296388124,0.40034415,2613.7,2613.6,5.92219373]
[1724296388324,0.40034415,2613.7,2613.6,8.14136]
[1724296388531,0.40034415,2613.7,2613.6,9.28037381]
[1724296389767,0.40034415,2613.7,2613.6,6.98469381]
[1724296390098,0.40034415,2613.7,2613.6,9.28037381]
[1724296391046,0.40034415,2613.7,2613.6,6.98469381]
[1724296391400,0.40034415,2613.7,2613.6,4.68901381]
[1724296391634,0.40034415,2613.7,2613.6,3.0]
[1724296391797,0.40034415,2613.7,2613.6,2.29568]
[1724296392004,0.40034415,2613.7,2613.6,5.29568]
[1724296393142,0.40034415,2613.7,2613.6,5.84568]
[1724296393711,0.40034415,2613.7,2613.6,8.14136]
[1724296393913,0.40034415,2613.7,2613.6,11.252896]
[1724296397777,0.40034415,2613.7,2613.6,8.957216]
[1724296398267,0.40034415,2613.7,2613.6,6.659816]
[1724296399483,0.40034415,2613.7,2613.6,3.0]
[1724296399645,0.40034415,2613.7,2613.3,5.29589]
[1724296399847,0.40034415,2613.7,2613.3,2.29589]
[1724296400054,0.40034415,2613.7,2613.3,4.59178]
[1724296400371,0.40034415,2613.7,2613.6,2.29568]
[1724296400582,0.40034415,2613.7,2613.6,8.348368]
[1724296400945,0.40034415,2613.7,2613.6,8.898368]
[1724296402764,0.40034415,2613.7,2613.1,2.2831]
[1724296402933,0.40034415,2613.7,2613.0,9.78612]
[1724296403130,2.69594415,2613.7,2613.0,9.78612]
[1724296403335,2.69594415,2613.7,2613.0,4.59227]
[1724296403578,1.12534357,2613.7,2613.1,2.29609]
[1724296403754,0.04777481,2613.6,2613.1,2.29609]
[1724296404076,0.40034415,2613.7,2613.2,2.29601]
[1724296404535,0.04777481,2613.6,2613.2,2.29601]
[1724296404731,0.04777481,2613.6,2613.2,2.29596]
[1724296405059,0.04777481,2613.6,2613.3,2.29594]
[1724296405378,0.04777481,2613.6,2613.4,2.84584]
[1724296405531,0.04777481,2613.6,2613.5,4.59154]
[1724296405736,0.04777481,2613.6,2613.5,5.14154]
[1724296406039,0.40034415,2613.7,2613.6,4.59136]
[1724296406262,0.40034415,2613.7,2613.6,5.655496]
[1724296406776,0.40034415,2613.7,2613.6,3.359816]
[1724296406961,0.40034415,2613.7,2613.4,2.29581]
[1724296408474,0.04731623,2613.6,2613.4,2.29581]
[1724296409553,0.04731623,2613.6,2613.4,4.59161]
[1724296409754,0.40034415,2613.7,2613.4,4.59161]
[1724296409956,0.40034415,2613.7,2613.4,4.5916]
[1724296410139,0.40034415,2613.7,2613.4,2.2958]
[1724296410341,0.40034415,2613.7,2613.4,4.5916]
[1724296410844,0.40034415,2613.7,2613.6,2.29568]
[1724296411364,0.44771302,2613.7,2613.6,2.29568]
[1724296411886,0.40034415,2613.7,2613.6,2.29568]
[1724296412658,0.40034415,2613.7,2613.6,4.59136]
[1724296412857,0.40034415,2613.7,2613.6,8.14136]
[1724296413087,0.40034415,2613.7,2613.6,9.50851813]
[1724296414272,2.72954415,2613.7,2613.4,0.8050813]
[1724296414439,2.72954415,2613.7,2613.1,9.9193]
[1724296414440,2.72954415,2613.7,2613.1,12.21535]
[1724296414640,2.72954415,2613.7,2613.2,5.29603]
[1724296414940,2.72954415,2613.7,2613.1,9.78605]
[1724296415340,2.72954415,2613.7,2613.2,2.29602]
[1724296415858,2.29577,2613.5,2613.1,7.49]
[1724296416200,2.2897,2613.4,2613.1,7.49]
[1724296416365,2.33708954,2613.4,2612.9,2.29627]
[1724296416560,2.73746128,2613.4,2612.9,2.29627]
[1724296416768,0.44776128,2613.4,2613.2,2.296]
[1724296416966,0.40037174,2613.4,2613.2,2.296]
[1724296417271,0.04713088,2613.3,2613.2,2.296]
[1724296417900,0.40037174,2613.4,2613.2,2.296]
[1724296417901,0.40037174,2613.4,2613.2,2.846]
[1724296418501,0.40037174,2613.4,2613.2,3.3831767]
[1724296419167,0.40037174,2613.4,2613.2,0.55]
[1724296419479,0.40037174,2613.4,2613.1,0.55]
[1724296420163,0.40037174,2613.4,2613.0,0.229627]
[1724296420364,2.3194,2613.3,2613.0,3.0]
[1724296420581,0.40037174,2613.4,2612.8,5.29638]
[1724296420770,0.04695214,2613.2,2613.0,2.29615]
[1724296420979,0.40037174,2613.4,2613.2,2.29598]
[1724296421663,0.40037174,2613.4,2613.3,0.55]
[1724296422165,0.44737493,2613.4,2613.3,0.55]
[1724296422566,2.71087493,2613.4,2612.8,3.0]
[1724296422767,0.44737493,2613.4,2613.1,2.29608]
[1724296423075,0.40037174,2613.4,2613.1,2.29608]
[1724296425708,0.40037174,2613.4,2613.1,2.29606]
[1724296426222,0.40037174,2613.4,2613.1,3.238697]
[1724296426691,0.40037174,2613.4,2613.1,0.942637]
[1724296426891,0.40037174,2613.4,2613.0,3.0]
[1724296427092,0.40037174,2613.4,2613.1,0.55]
[1724296429077,2.69627174,2613.4,2613.0,3.0]
[1724296429275,2.3588,2613.3,2612.8,3.0]
[1724296429513,2.40563776,2613.3,2612.9,0.55]
[1724296430027,2.3588,2613.3,2612.8,3.0]
[1724296430215,2.3588,2613.3,2612.8,4.278642]
[1724296430415,2.3588,2613.3,2612.9,2.29624]
[1724296430621,0.0467967,2613.2,2613.1,2.29612]
[1724296431024,0.40037174,2613.4,2613.1,2.29488355]
[1724296431324,0.40037174,2613.4,2613.1,3.2900999]
[1724296432131,0.40037174,2613.4,2613.2,2.29601]
[1724296433842,0.40037174,2613.4,2613.2,4.59195]
[1724296434002,0.40037174,2613.4,2613.2,2.29597]
[1724296434558,0.40037174,2613.4,2613.2,5.29597]
[1724296434695,0.40037174,2613.4,2613.3,0.62911864]
[1724296435124,0.44729497,2613.4,2613.3,0.62911864]
[1724296436434,0.44729497,2613.4,2613.3,2.92505864]
[1724296437012,0.44729497,2613.4,2613.3,0.62911864]
[1724296438313,0.44729497,2613.4,2613.2,5.29597]
[1724296438510,0.44729497,2613.4,2613.2,2.29597]
[1724296438511,0.40037174,2613.4,2613.2,2.29597]
[1724296439136,0.40037174,2613.4,2613.1,3.0]
[1724296439334,2.85627174,2613.4,2613.0,5.29616]
[1724296439654,0.40037174,2613.4,2613.1,5.84606]
[1724296439822,0.40037174,2613.4,2613.1,2.84606]
[1724296440022,0.40037174,2613.4,2613.1,0.55]
[1724296440231,0.40037174,2613.4,2612.9,3.0]
[1724296440232,2.4559,2613.3,2612.9,3.0]
[1724296440528,2.4559,2613.3,2612.7,7.49]
[1724296440529,2.4559,2613.3,2612.8,3.0]
[1724296440711,0.04688553,2613.2,2612.8,5.29635]
[1724296441112,2.4559,2613.3,2612.7,9.7864]
[1724296441446,0.94415421,2613.2,2612.7,7.49]
[1724296441600,4.77124,2613.1,2612.3,2.29674]
[1724296441936,4.77124,2613.1,2612.6,2.2965]
[1724296441937,0.04501307,2613.0,2612.6,2.2965]
[1724296442179,0.04501307,2613.0,2612.7,2.29644]
[1724296442440,0.04501307,2613.0,2612.5,4.59318]
[1724296442797,0.04501307,2613.0,2612.6,2.29656]
[1724296442997,0.41374844,2613.0,2612.1,2.29694]
[1724296443236,2.4604,2612.9,2612.1,2.29694]
[1724296443541,0.04477543,2612.8,2612.3,2.29674]
[1724296444037,0.12146166,2612.8,2612.3,2.29674]
[1724296444351,2.29662,2612.6,2611.9,4.59424]
[1724296444507,2.50488597,2612.7,2611.9,2.29711]
[1724296444698,0.0442434,2612.5,2611.9,2.29711]
[1724296444898,2.4604,2612.7,2612.1,2.29697]
[1724296445151,0.04402456,2612.4,2612.1,2.29697]
[1724296445312,0.07668623,2612.5,2611.9,2.29711]
[1724296445509,0.04396569,2612.3,2611.7,5.29728]
[1724296445696,2.50442456,2612.4,2611.7,5.29728]
[1724296445899,0.04390682,2612.2,2611.8,2.29726]
[1724296446137,0.48778108,2612.3,2611.8,2.29726]
[1724296446401,0.04384794,2612.1,2611.8,2.29726]
[1724296446632,0.04390682,2612.2,2611.8,2.29726]
[1724296446836,0.04376683,2612.0,2611.8,2.29726]
[1724296447018,2.4604,2612.4,2611.8,2.29726]
[1724296447019,2.4604,2612.4,2611.8,2.2972]
[1724296447210,0.04370794,2611.9,2611.8,2.2972]
[1724296447537,2.4604,2612.4,2611.8,2.8472]
[1724296447738,2.4604,2612.4,2611.9,3.0]
[1724296447923,3.17343562,2612.4,2611.9,3.0]
[1724296448638,2.4016,2612.7,2612.0,2.847]
[1724296449023,4.69807,2612.7,2612.0,2.847]
[1724296449543,2.4016,2612.7,2612.0,2.847]
[1724296449764,2.29672,2612.5,2611.9,3.0]
[1724296450062,2.3055,2612.3,2611.8,2.29722]
[1724296450650,2.3055,2612.3,2612.0,2.29708]
[1724296451371,2.3055,2612.5,2612.0,2.29708]
[1724296451539,0.24016,2612.6,2611.9,5.4609]
[1724296451743,2.3078,2613.0,2612.0,1.17264692]
[1724296451944,2.3078,2613.0,2612.4,2.29667]
[1724296452147,4.60401,2613.0,2612.4,2.29667]
[1724296452675,2.3078,2613.0,2612.4,4.59334]
[1724296452828,2.3078,2613.0,2612.4,3.302154]
[1724296453032,2.3078,2613.0,2612.4,2.29667]
[1724296456786,0.40033315,2612.9,2612.5,2.29659]
[1724296456985,0.40033315,2612.9,2612.4,4.59335]
[1724296457357,0.40033315,2612.9,2612.4,2.29667]
[1724296457898,0.40033315,2612.9,2612.1,2.2648]
[1724296457899,0.40033315,2612.9,2612.6,2.29656]
[1724296458223,0.40033315,2612.9,2612.7,2.29642]
[1724296458532,0.40033315,2612.9,2612.8,2.29638]
[1724296458668,0.40033315,2612.9,2612.8,2.84638]
[1724296458870,0.40033315,2612.9,2612.8,5.84638]
[1724296459697,0.4448164,2612.9,2612.8,5.84638]
[1724296459895,0.4448164,2612.9,2612.8,6.6891306]
[1724296462292,0.4448164,2612.9,2612.8,11.3710106]
[1724296462501,0.40033315,2612.9,2612.8,11.3710106]
[1724296463537,2.3215,2613.6,2613.1,2.2961]
[1724296463698,0.40028079,2613.4,2613.1,2.2961]
[1724296464830,0.40028079,2613.4,2613.1,4.59217]
[1724296465036,0.40028079,2613.4,2613.1,3.055287]
[1724296465235,0.40028079,2613.4,2613.1,2.29607]
[1724296465884,0.40028079,2613.4,2613.2,0.55]
[1724296466630,0.40028079,2613.4,2613.3,2.29594]
[1724296467581,0.40028079,2613.4,2613.2,0.55]
[1724296467782,0.40028079,2613.4,2613.2,2.84602]
[1724296469696,0.40028079,2613.4,2613.3,2.29594]
[1724296470705,0.40028079,2613.4,2613.2,2.84601]
[1724296471684,0.40028079,2613.4,2613.2,5.14199]
[1724296471886,0.40028079,2613.4,2613.3,2.29594]
[1724296473132,0.40028079,2613.4,2613.2,5.14196]
[1724296473625,0.40028079,2613.4,2613.3,2.29594]
[1724296474222,0.40028079,2613.4,2613.3,2.84594]
[1724296474753,0.4455425,2613.4,2613.3,5.656072]
[1724296475024,0.4455425,2613.4,2613.3,10.42098]
[1724296475184,0.40028079,2613.4,2613.3,10.42098]
[1724296475935,2.3934,2614.0,2613.3,5.8291]
[1724296476091,0.40026505,2613.9,2613.4,5.84579]
[1724296476426,0.44578324,2613.9,2613.5,3.392839]
[1724296476722,0.44578324,2613.9,2613.6,3.55]
[1724296477634,0.44578324,2613.9,2613.6,0.55]
[1724296478720,0.44578324,2613.9,2613.5,0.55]
[1724296480136,2.3934,2613.8,2613.5,0.55]
[1724296480339,2.3934,2613.8,2613.4,3.0]
[1724296480340,4.7343151,2613.8,2613.4,3.0]
[1724296480632,4.7343151,2613.8,2613.2,7.49]
[1724296480633,2.29569,2613.6,2613.2,7.49]
[1724296481014,2.29587,2613.4,2613.2,7.49]
[1724296481215,0.04524643,2613.5,2613.2,7.49]
[1724296481416,0.04512878,2613.3,2613.2,7.49]
[1724296481584,2.3934,2613.6,2613.2,7.49]
[1724296481585,4.68911,2613.6,2613.2,7.49]
[1724296481787,0.04515101,2613.3,2613.2,7.49]
[1724296482001,6.98486,2613.6,2613.2,7.49]
[1724296482187,0.04510215,2613.3,2613.2,7.49]
[1724296482414,4.68911,2613.6,2613.2,7.49]
[1724296482730,5.387575,2613.6,2613.2,7.49]
[1724296482931,0.0452198,2613.5,2613.2,7.49]
[1724296485214,2.3409898,2613.5,2613.2,7.49]
[1724296485718,2.3409898,2613.5,2612.9,5.29629]
[1724296485895,2.3409898,2613.5,2613.0,3.55]
[1724296486747,0.0452198,2613.5,2613.0,5.8462]
[1724296487101,2.3934,2613.6,2613.0,5.8462]
[1724296487498,2.3934,2613.6,2613.1,2.29609]
[1724296487728,2.3934,2613.6,2613.2,0.55]
[1724296488249,0.04512651,2613.5,2613.2,0.55]
[1724296488434,0.04512651,2613.5,2613.1,0.55]
[1724296489011,2.47008623,2613.4,2612.6,2.2791]
[1724296489336,2.47008623,2613.4,2612.4,7.49]
[1724296489337,4.68948,2613.2,2612.4,9.7691]
[1724296489533,4.68948,2613.2,2612.5,2.29664]
[1724296489698,0.04485361,2613.1,2612.5,4.59328]
[1724296490051,0.04485361,2613.1,2612.5,2.29664]
[1724296490196,0.47343336,2613.1,2612.5,2.29664]
[1724296490801,0.47343336,2613.1,2612.5,5.29664]
[1724296491002,4.68948,2613.2,2612.5,5.29664]
[1724296491413,0.40032417,2613.0,2612.5,5.29664]
[1724296492120,2.69654417,2613.0,2612.5,3.0]
[1724296492317,2.69654417,2613.0,2612.4,7.57578]
[1724296492542,0.04473592,2612.9,2612.5,0.55]
[1724296492747,0.04473592,2612.9,2612.5,3.55]
[1724296493060,0.04473592,2612.9,2612.5,5.84665]
[1724296497651,0.04473592,2612.9,2612.5,3.55]
[1724296498520,4.64238,2612.8,2612.5,3.55]
[1724296498729,4.64238,2612.8,2612.3,3.0]
[1724296498925,0.04437827,2612.7,2612.4,0.55]
[1724296499109,4.64238,2612.8,2612.3,3.55]
[1724296499309,2.29648,2612.7,2612.3,3.55]
[1724296499512,2.34085827,2612.7,2612.4,3.0]
[1724296499702,2.34085827,2612.7,2612.3,0.55]
[1724296500373,2.45348623,2612.6,2611.8,7.49]
[1724296500544,2.3768,2612.2,2611.6,2.4127]
[1724296500747,2.3768,2612.2,2611.6,4.71007]
[1724296500909,2.3768,2612.2,2611.7,2.29733]
[1724296501108,0.04368287,2612.1,2611.7,2.29733]
[1724296501919,0.04368287,2612.1,2611.7,5.29733]
[1724296502719,2.2968,2612.4,2611.7,5.29733]
[1724296502720,4.7632,2612.4,2611.7,5.2973]
[1724296502921,0.04349505,2612.0,2611.8,0.55]
[1724296503159,0.04349505,2612.0,2611.8,3.55]
[1724296503363,0.04343616,2611.9,2611.8,3.55]
[1724296503526,5.31620623,2612.4,2611.8,3.55]
[1724296503708,2.29685,2612.3,2611.8,3.55]
[1724296503909,2.4664,2612.4,2611.8,3.55]
[1724296504148,0.04360392,2612.2,2611.9,2.29715]
[1724296504321,2.4664,2612.4,2611.9,2.29715]
[1724296504715,2.4664,2612.4,2611.8,3.55]
[1724296504936,0.04366279,2612.3,2611.8,5.84726]
[1724296505142,0.04366279,2612.3,2611.8,6.902985]
[1724296505858,0.04366279,2612.3,2611.9,2.29716]
[1724296506067,0.04366279,2612.3,2611.8,4.605725]
[1724296506228,2.29691,2612.2,2611.8,4.605725]
[1724296506416,2.29691,2612.2,2611.8,1.605725]
[1724296506765,0.44394484,2612.1,2611.8,1.605725]
[1724296507656,0.44394484,2612.1,2611.7,3.0]
[1724296507861,5.07010484,2612.1,2611.6,3.0]
[1724296508154,2.34063615,2612.0,2611.5,3.0]
[1724296508453,0.04348615,2612.0,2611.5,3.0]
[1724296508818,0.04348615,2612.0,2611.5,4.73513]
[1724296509142,5.0265598,2612.1,2611.5,4.73513]
[1724296511217,5.0265598,2612.1,2611.5,7.03264]
[1724296511624,2.7294998,2612.1,2611.5,7.03264]
[1724296512015,2.7294998,2612.1,2611.5,9.33011]
[1724296512216,2.7294998,2612.1,2611.5,7.0326]
[1724296512468,2.7294998,2612.1,2611.6,2.232011]
[1724296512755,0.04162226,2612.0,2611.6,2.232011]
[1724296513437,0.04162226,2612.0,2611.7,2.2946]
[1724296514258,0.04162226,2612.0,2611.6,2.232011]
[1724296514259,2.32732226,2612.0,2611.6,2.232011]
[1724296514554,2.32732226,2612.0,2611.6,0.55]
[1724296515852,0.04162226,2612.0,2611.6,0.55]
[1724296517159,0.04162226,2612.0,2611.9,2.29717]
[1724296517461,0.04162226,2612.0,2611.9,0.55]
[1724296517663,0.04162226,2612.0,2611.9,2.84717]
[1724296518018,0.04162226,2612.0,2611.6,2.2974]
[1724296518221,0.4003998,2612.1,2611.5,5.4136]
[1724296518462,0.4003998,2612.1,2611.7,2.29729]
[1724296518764,0.04100226,2612.0,2611.8,0.55]
[1724296519134,0.04100226,2612.0,2611.8,3.55]
[1724296519468,0.04100226,2612.0,2611.8,4.364466]
[1724296520671,0.04100226,2612.0,2611.9,2.29717]
[1724296520996,0.04100226,2612.0,2611.9,12.85511]
[1724296521131,0.4003998,2612.1,2612.0,7.00778]
[1724296521329,0.4003998,2612.1,2612.0,11.9247216]
[1724296521669,2.2923,2613.0,2612.5,2.2966]
[1724296521870,2.2923,2613.0,2612.5,5.2966]
[1724296522168,0.43923247,2612.9,2612.5,5.2966]
[1724296522545,0.43923247,2612.9,2612.6,2.29654]
[1724296522745,0.43923247,2612.9,2612.8,4.59276]
[1724296522936,0.43923247,2612.9,2612.8,5.14276]
[1724296523280,0.40039715,2612.9,2612.8,5.84638]
[1724296524156,0.40039715,2612.9,2612.8,8.14276]
[1724296525125,0.40039715,2612.9,2612.8,5.84638]
[1724296525463,0.40039715,2612.9,2612.8,6.7724454]
[1724296525812,0.43869245,2612.9,2612.8,6.7724454]
[1724296525959,0.43869245,2612.9,2612.4,4.6836]
[1724296526159,0.43869245,2612.9,2612.5,2.29664]
[1724296526372,0.40039715,2612.9,2612.5,2.29662]
[1724296526763,0.03823645,2612.8,2612.5,2.29662]
[1724296527109,0.03823645,2612.8,2612.0,2.29707]
[1724296527110,2.2962,2612.7,2612.0,2.29707]
[1724296527275,0.46308264,2612.6,2612.0,2.29707]
[1724296527832,0.46308264,2612.6,2612.1,2.29699]
[1724296528018,2.2962,2612.7,2612.1,2.29699]
[1724296528192,0.03793272,2612.5,2612.2,2.2969]
[1724296528517,2.2962,2612.7,2612.1,5.29699]
[1724296528719,0.03787385,2612.4,2612.1,5.29699]
[1724296528904,2.2962,2612.7,2612.1,5.29699]
[1724296529103,2.56585971,2612.7,2612.1,3.0]
[1724296529317,2.56585971,2612.7,2612.0,2.29707]
[1724296529534,0.03799158,2612.6,2612.0,2.29707]
[1724296529692,2.56585971,2612.7,2612.1,0.55]
[1724296530019,0.03799158,2612.6,2612.1,5.84699]
[1724296530387,2.56585971,2612.7,2612.1,3.55]
[1724296530633,0.48622497,2612.6,2612.1,3.55]
[1724296530833,0.52421655,2612.6,2612.1,3.55]
[1724296531034,0.48622497,2612.6,2612.1,3.55]
[1724296531206,2.56585971,2612.7,2612.1,3.55]
[1724296531610,0.03799158,2612.6,2612.1,5.847]
[1724296532154,2.56585971,2612.7,2612.1,5.847]
[1724296532716,0.03799158,2612.6,2612.1,5.847]
[1724296532961,0.40039715,2612.9,2612.3,2.29682]
[1724296533219,0.40039715,2612.9,2612.4,2.29667]
[1724296533220,0.03768322,2612.5,2612.4,2.29667]
[1724296533417,0.40039715,2612.9,2612.5,2.29661]
[1724296533634,0.40039715,2612.9,2612.5,5.29661]
[1724296534389,0.40039715,2612.9,2612.6,2.29655]
[1724296534545,0.40039715,2612.9,2612.6,5.29655]
[1724296534721,0.03762366,2612.8,2612.6,2.29655]
[1724296534924,0.03762366,2612.8,2612.6,3.06352666]
[1724296535125,0.03762366,2612.8,2612.6,2.29655]
[1724296536127,0.03762366,2612.8,2612.7,2.37301653]
[1724296536402,0.03762366,2612.8,2612.7,9.80071]
[1724296536523,2.4455,2613.7,2613.1,2.29607]
[1724296536723,0.40037978,2613.3,2613.1,2.29607]
[1724296536930,2.84587978,2613.3,2613.0,3.0]
[1724296537270,0.0379704,2613.2,2612.9,3.0]
[1724296537620,2.4455,2613.3,2612.9,3.0]
[1724296537823,2.4455,2613.3,2612.7,3.55]
[1724296538059,0.0379704,2613.2,2612.7,3.55]
[1724296538429,2.919637,2613.3,2612.7,3.0]
[1724296538766,2.3340704,2613.2,2612.5,5.29662]
[1724296538949,5.215597,2613.3,2612.5,5.29662]
[1724296539125,0.7511467,2613.2,2612.6,3.0]
[1724296539320,0.7511467,2613.2,2612.5,2.29662]
[1724296539321,0.03791156,2613.1,2612.5,2.29662]
[1724296539551,2.4455,2613.0,2612.5,2.29662]
[1724296539766,2.48335272,2613.0,2612.5,2.29662]
[1724296541565,2.48335272,2613.0,2612.6,2.29655]
[1724296541737,2.48335272,2613.0,2612.6,5.29655]
[1724296542130,2.48335272,2613.0,2612.6,2.29655]
[1724296542627,2.48335272,2613.0,2612.4,5.29668]
[1724296542824,2.48335272,2613.0,2612.5,2.84663]
[1724296543024,3.03640666,2613.0,2612.5,2.84663]
[1724296544384,2.48335272,2613.0,2612.5,2.84663]
[1724296545239,2.48335272,2613.0,2612.4,3.0]
[1724296545442,2.48335272,2613.0,2611.9,2.29709]
[1724296545443,2.29662,2612.6,2611.9,2.29709]
[1724296545674,2.4455,2612.4,2611.8,7.49]
[1724296545970,0.03744071,2612.3,2611.8,7.56656604]
[1724296546141,0.229662,2612.5,2611.8,7.56656604]
[1724296546142,2.4455,2612.6,2611.8,7.49]
[1724296546479,2.4455,2612.6,2612.2,2.29684]
[1724296546972,2.4455,2612.9,2612.3,2.29679]
[1724296547276,0.0376565,2612.5,2612.4,0.55]
[1724296547431,2.4455,2612.9,2612.4,0.55]
[1724296547627,0.03752728,2612.5,2612.4,3.0]
[1724296547842,4.74185,2612.9,2612.2,2.29689]
[1724296548079,4.74185,2612.9,2612.2,5.29689]
[1724296548080,0.03752728,2612.5,2612.2,5.29689]
[1724296548243,4.74185,2612.9,2612.2,5.29689]
[1724296548427,0.03746841,2612.4,2612.2,3.0]
[1724296548775,2.29638,2612.8,2612.1,2.29694]
[1724296548776,2.4455,2612.8,2612.1,2.29694]
[1724296548935,2.4455,2612.8,2612.2,0.55]
[1724296549130,2.4455,2612.8,2612.2,3.55]
[1724296549331,0.03765391,2612.7,2612.2,3.0]
[1724296549554,2.4455,2612.5,2611.9,5.29712]
[1724296549765,2.4455,2612.5,2612.0,0.55]
[1724296549973,2.4455,2612.5,2612.0,5.84703]
[1724296550382,2.4455,2612.5,2612.1,2.29698]
[1724296550549,4.74206,2612.7,2612.1,5.29698]
[1724296550729,0.03747732,2612.4,2612.1,5.29698]
[1724296550935,4.74206,2612.7,2612.1,5.29698]
[1724296551136,0.03759505,2612.6,2612.1,5.29698]
[1724296551361,5.445899,2612.7,2612.1,5.29698]
[1724296551568,0.03753619,2612.5,2612.1,5.29698]
[1724296551772,4.74206,2612.7,2612.1,5.29698]
[1724296551969,0.03747732,2612.4,2612.1,5.29698]
[1724296552286,2.4455,2612.7,2612.1,6.111338]
[1724296552705,0.40047954,2612.3,2612.1,5.29693]
[1724296552882,0.03759505,2612.6,2612.1,5.29693]
[1724296553050,0.40048017,2612.3,2612.1,5.29693]
[1724296553245,0.40048017,2612.3,2612.1,3.0]
[1724296553854,2.79958017,2612.3,2611.9,2.29713]
[1724296554269,2.79958017,2612.3,2611.8,7.49]
[1724296554460,0.03735957,2612.2,2611.9,0.55]
[1724296554656,0.03735957,2612.2,2611.7,2.29728]
[1724296554859,2.5882926,2612.2,2611.5,2.29747]
[1724296555084,2.66497883,2612.2,2611.5,2.29747]
[1724296555285,0.36804883,2612.2,2611.6,2.29742]
[1724296555447,0.03717145,2612.1,2611.6,2.29742]
[1724296556215,2.3303,2612.0,2611.4,7.49]
[1724296556349,2.36697589,2612.0,2611.4,2.2976]
[1724296556774,2.36697589,2612.0,2611.5,4.59497]
[1724296557048,0.03667589,2612.0,2611.7,2.29728]
[1724296557253,2.3374,2612.2,2611.7,2.527008]
[1724296557476,2.3374,2612.2,2611.9,2.29716]
[1724296557991,0.40048017,2612.3,2611.9,2.29716]
[1724296558684,0.40048017,2612.3,2612.0,2.29708]
[1724296558842,0.40048017,2612.3,2611.9,5.29716]
[1724296559067,0.40048017,2612.3,2611.9,6.1345798]
[1724296560420,0.40048017,2612.3,2611.9,6.1345398]
[1724296561184,0.40048017,2612.3,2611.9,3.0]
[1724296561512,0.40048017,2612.3,2611.8,5.84724]
[1724296562308,0.40048017,2612.3,2611.8,3.55]
[1724296563373,2.69731017,2612.3,2611.8,3.55]
[1724296564491,2.3374,2612.1,2611.6,7.49]
[1724296564694,2.29715,2612.0,2611.6,7.49]
[1724296564874,0.03651547,2612.0,2611.6,7.49]
[1724296566907,0.03651547,2612.0,2611.6,9.78744]
[1724296567110,0.03651547,2612.0,2611.6,7.49]
[1724296568542,0.40048836,2611.9,2611.6,7.49]
[1724296568901,0.03514611,2611.8,2611.6,7.49]
[1724296569097,0.03514611,2611.8,2611.5,2.2975]
[1724296569424,0.40048836,2611.9,2611.5,5.2975]
[1724296569588,0.03508721,2611.7,2611.5,5.2975]
[1724296569788,0.40048836,2611.9,2611.5,5.2975]
[1724296569789,0.40048836,2611.9,2611.5,2.2975]
[1724296570012,0.0350283,2611.6,2611.5,2.29747]
[1724296570185,0.40048836,2611.9,2611.5,3.056985]
[1724296570386,0.40048836,2611.9,2611.6,3.0]
[1724296571426,0.40048836,2611.9,2611.6,5.29742]
[1724296571748,0.40048836,2611.9,2611.8,4.59452]
[1724296572024,0.40048836,2611.9,2611.8,8.14452]
[1724296574932,0.40048836,2611.9,2611.8,12.76968]
[1724296575106,2.3374,2613.3,2612.6,2.29656]
[1724296575312,2.3374,2613.3,2612.7,0.779656]